Cogmind - Beta 16 @@@ ROGUE MODE // 2025.10.25 @ 03:25:54 Player: The Gourd Result: Destroyed by H-55 Commando with Assault Rifle Performance ------------- Evolutions (1) 500 Regions Visited (5) 1000 Robots Destroyed (109) 545 Value Destroyed (2435) 2435 Prototype IDs (28) 560 Alien Tech Used (0) 0 Bonus (285) 285 TOTAL SCORE: 5325 Bonus ------- Aligned with FarCom 300 Friendly Fire -15 Cogmind --------- Core Integrity 0/400 Matter 38/300 Energy 280/280 System Corruption 11% Temperature Cool (31) Movement Treading (240) Ox1 Location -9/Exiles Parts ------- > --- POWER (1) -------- Cooled Ion Engine > --- PROPULSION (3) --- Light Treads Light Treads > --- UTILITY (2) ------ High-capacity Storage Unit Hardened Medium Armor Plating > --- WEAPON (3) ------- Heavy Assault Rifle Heavy Assault Rifle Gauss Rifle > --- INVENTORY (20) --- Heavy Ion Engine Light Treads Light Treads Army-in-a-Box (30/30) Rocket Launcher Datajack Maul Peak State ------------ > --- POWER ------------ Heavy Ion Engine > --- PROPULSION ------- Light Treads Light Treads Light Treads > --- UTILITY ---------- High-capacity Storage Unit Hardened Medium Armor Plating > --- WEAPON ----------- Heavy Assault Rifle Improved Assault Rifle Improved Assault Rifle > --- INVENTORY -------- Cooled Ion Engine Light Treads Light Treads Light Treads Light Treads Light Treads Light Treads Hardened Medium Armor Plating Hardened Medium Armor Plating Army-in-a-Box Heavy Assault Rifle Heavy Assault Rifle Rocket Launcher Datajack Maul [Rating: 25] Favorites ----------- Power Heavy Ion Engine Engine Heavy Ion Engine Power Core Light Nuclear Core Propulsion Light Treads Treads Light Treads Wheel Compact Wheel Flight Unit Improved Flight Unit Utility High-capacity Storage Unit Device Seismic Detector Storage High-capacity Storage Unit Protection Hardened Medium Armor Plating Weapon Improved Assault Rifle Energy Gun EM Pulse Gun Ballistic Gun Improved Assault Rifle Launcher Rocket Launcher Special Weapon Mining Laser Impact Weapon Maul Build | -11 -10 -10 -9 -9 -9 ------- Run | Yrd Mat Min Mat Min Exi Slots Evolved 2 | . . . 2 . . Power . | . . . . . . Propulsion 1 | . . . 1 . . Utility . | . . . . . . Weapon 1 | . . . 1 . . Parts Attached 55 | 7 10 . 25 1 12 Power 6 | 1 1 . 3 . 1 Engine 5 | 1 1 . 3 . . Core 1 | . . . . . 1 Reactor . | . . . . . . Propulsion 16 | 2 1 . 8 . 5 Treads 13 | 1 1 . 6 . 5 Leg . | . . . . . . Wheel 2 | 1 . . 1 . . Hover . | . . . . . . Flight 1 | . . . 1 . . Utility 9 | 2 2 . 3 . 2 Device 2 | 1 . . 1 . . Storage 3 | 1 2 . . . . Processor . | . . . . . . Hackware . | . . . . . . Protection 4 | . . . 2 . 2 Artifact . | . . . . . . Weapon 24 | 2 6 . 11 1 4 Energy Gun 9 | 2 3 . 4 . . Energy Cannon . | . . . . . . Ballistic Gun 10 | . 1 . 5 . 4 Ballistic Cannon . | . . . . . . Launcher 3 | . 1 . 1 1 . Special Weapon 1 | . 1 . . . . Impact Weapon 1 | . . . 1 . . Slashing Weapon . | . . . . . . Piercing Weapon . | . . . . . . Special Melee Weapon . | . . . . . . Unidentified Prototypes 5 | . 1 . 4 . . Parts Lost 17 | . 2 . 5 . 10 Power 2 | . 1 . . . 1 Propulsion 6 | . . . 1 . 5 Utility 3 | . . . 1 . 2 Weapon 6 | . 1 . 3 . 2 Highest Loss Streak 5 | . 1 . 3 . 5 To Critical Strikes . | . . . . . . Average Backups 15 | 4 10 14 18 20 17 Power 1 | . . . 1 2 1 Propulsion 5 | 1 2 5 6 7 6 Utility 2 | . . 2 4 3 2 Weapon 5 | 1 5 5 6 7 5 Tool/Special . | . . . . . . Unused Backups 14 | . 3 . 4 . 7 Power 2 | . . . 2 . . Propulsion 4 | . 1 . . . 3 Utility 3 | . . . 1 . 2 Weapon 4 | . 2 . 1 . 1 Tool/Special 1 | . . . . . 1 Average Slot Usage (%) 99 | . 99 99 99 100 96 Engine 11 | . 13 14 11 11 10 Treads 25 | . 14 14 28 33 31 Wheel 6 | . 14 14 3 . . Device 5 | . 14 14 1 . . Storage 11 | . 14 14 11 11 11 Protection 6 | . . . 9 11 11 Energy Gun 11 | . 25 27 6 . . Ballistic Gun 16 | . . . 24 28 23 Launcher 2 | . . . . 4 8 Peak Build Rating 25 | 7 9 8 24 21 25 Average Rating 15 | 6 7 7 20 20 20 On Entrance 10 | . 7 8 8 21 20 Avg Prop Armor Cover (%) 12 | 13 12 12 13 . . Naked Turns . | . . . . . . Heaviest Build 66 | 15 50 51 65 66 66 Greatest Support 60 | 16 16 16 60 60 60 Greatest Overweight (x) 21 | . 4 3 21 1 1 Average Overweight (x) 1 | . 1 3 2 1 . Largest Inventory Capacity 20 | 8 20 20 20 20 20 Average Capacity 18 | 7 15 20 20 20 20 Most Carried 20 | 5 14 16 20 20 20 Average Carried 15 | 4 10 14 18 20 18 Final Capacity 20 | 8 20 20 20 20 20 Final Carried 20 | 5 13 16 20 20 12 Class Distribution -------------------- 42% | Mutant 29% | Scavenger-Tank 23% | Tank 3% | Gunner Dominant Class ---------------- Mutant | -10/Materials Mutant | -10/Mines Tank | -9/Materials Scavenger-Tank | -9/Mines Scavenger-Tank | -9/Exiles Resources | -11 -10 -10 -9 -9 -9 ----------- Run | Yrd Mat Min Mat Min Exi Matter Collected 2045 | 270 176 120 867 260 352 Remotely . | . . . . . . Salvage Created 3319 | 368 448 107 1455 288 653 Parts 222 | 34 26 3 97 24 38 Haulers Intercepted 7 | . 1 . 6 . . Recyclers Shooed 4 | . . . 4 . . Parts Field Recycled . | . . . . . . Retrieved Matter . | . . . . . . Parts Self-Destructed . | . . . . . . Prevented . | . . . . . . Parts Restored . | . . . . . . Kills | -11 -10 -10 -9 -9 -9 ------- Run | Yrd Mat Min Mat Min Exi Combat Hostiles Destroyed 90 | . 10 18 28 15 19 Melee 1 | . . . 1 . . Guns 49 | . 4 3 21 12 9 AOE 39 | . 5 15 6 3 10 Classes Destroyed 13 | 3 4 1 1 1 3 Worker 8 | 4 1 . 3 . . Tunneler 9 | 9 . . . . . Hauler 7 | . 1 . 6 . . Recycler 5 | 1 . . 4 . . Watcher 6 | . 1 . 5 . . Swarmer 29 | . 3 . 14 12 . Grunt 25 | . 7 2 6 2 8 Brawler 2 | . . . . 1 1 Duelist 1 | . . . . . 1 Sentry 8 | . . . 8 . . Hunter 4 | . . . . . 4 Programmer 5 | . . . . . 5 Assembled 16 | . . 16 . . . Best Kill Streak 16 | 7 6 16 14 3 5 Combat Bots Only 16 | . 4 16 9 3 5 Max Kills in Single Turn 4 | 1 3 4 4 2 3 Gunslinging 1 | . . . . 1 . Exploded 4 | . 2 4 3 2 3 Melee 1 | . . . 1 . . Uniques/NPCs Destroyed . | . . . . . . Combat | -11 -10 -10 -9 -9 -9 -------- Run | Yrd Mat Min Mat Min Exi Hostile Shots Fired 412 | . 43 15 100 43 211 Missed 114 | . 10 6 26 13 59 Hits 298 | . 33 9 74 30 152 Melee 4 | . . . . . 4 Projectile 294 | . 33 9 74 30 148 Critical Strikes 7 | . 1 . 2 . 4 Damage Taken 4171 | . 404 109 1138 271 2249 Core 483 | . 69 14 124 37 239 Absorbed by Shields . | . . . . . . Regen/Repaired (Parts) 113 | . . . 113 . . Core Remaining (%) 83 | 100 . 66 . . . Volleys Fired 232 | 20 46 16 76 21 53 Largest 3 | 2 2 2 3 3 3 Hottest 120 | 80 100 80 120 69 79 Shots Fired 527 | 40 74 25 202 59 127 Gun 496 | 40 64 21 197 57 117 Cannon . | . . . . . . Launcher 25 | . 4 4 5 2 10 Special 6 | . 6 . . . . Kinetic 319 | . . . 145 57 117 Thermal 13 | . 6 . 7 . . Explosive 25 | . 4 4 5 2 10 Electromagnetic 170 | 40 64 21 45 . . Robot Hit Streak 17 | 10 6 9 17 8 9 Robot Miss Streak 4 | 2 4 3 4 4 4 Penetration Max . | . . . . . . Secondary Targets 8 | . . 1 4 3 . Max Gunslinging Chain 1 | . . 1 1 1 . Shots Hit Robots 309 | 26 41 14 119 32 77 Core Hits 192 | 14 20 43 61 16 38 Critical Kills 1 | . . . 1 . . Critical Parts Destroyed 4 | . . . 3 1 . Critical Strikes 5 | . . . 4 1 . Destroy 3 | . . . 2 1 . Smash 2 | . . . 2 . . Melee Attacks 9 | . . . 9 . . Impact 9 | . . . 9 . . Slashing . | . . . . . . Piercing . | . . . . . . Sneak Attacks 2 | . . . 2 . . Combat Hostiles . | . . . . . . Follow-up Attacks . | . . . . . . Damage Inflicted 7841 | 392 957 1200 2782 567 1943 Guns 4353 | 355 537 139 1701 447 1174 Cannons . | . . . . . . Explosions 3205 | 37 419 1061 799 120 769 Melee 282 | . . . 282 . . Ramming 1 | . 1 . . . . Kinetic 2975 | . . . 1354 447 1174 Thermal 197 | 37 82 . 78 . . Explosive 3086 | . 337 1061 799 120 769 Electromagnetic 1300 | 355 537 139 269 . . Impact 282 | . . . 282 . . Slashing . | . . . . . . Piercing . | . . . . . . Highest Corruption 11 | . 4 4 . . 11 Average Corruption 4 | . 3 4 . . 9 Corruption Purged . | . . . . . . Corruption Blocked . | . . . . . . Effects 50 | . 14 23 . . 13 Message Errors 14 | . 4 7 . . 3 Matter Fused 9 | . 4 4 . . 1 Heat Flow Errors 4 | . . 2 . . 2 Energy Discharges 4 | . 2 1 . . 1 Data Loss (minor) 6 | . 2 3 . . 1 Data Loss (major) 3 | . 1 2 . . . Misfires 2 | . . . . . 2 Alerts 3 | . . 3 . . . Misdirections 1 | . . . . . 1 Weapon Failures 4 | . 1 1 . . 2 Overload Shots . | . . . . . . Overflow Damage 260 | . 16 21 216 . 7 Projectiles . | . . . . . . Explosions 60 | . 16 21 16 . 7 Melee 200 | . . . 200 . . Knockbacks 2 | . . . 2 . . Impact 2 | . . . 2 . . Kinetic . | . . . . . . Secondary . | . . . . . . Self-Inflicted Damage 108 | . 18 . 14 27 49 Shots 6 | . 2 . 1 1 2 Rammed 1 | . 1 . . . . Targets Rammed 1 | . 1 . . . . Kicked . | . . . . . . Crushed . | . . . . . . Highest Temperature 464 | 90 198 210 464 74 150 Average Temperature 57 | 33 40 53 83 37 46 Received Heat Transfer 729 | . 171 6 336 6 210 Effects 5 | . . 1 4 . . Energy Bleed 2 | . . 1 1 . . Interference 1 | . . . 1 . . Matter Decay 1 | . . . 1 . . Short Circuit 1 | . . . 1 . . Siege Activations . | . . . . . . Martial Activations . | . . . . . . Shielding Activations . | . . . . . . Robots Disrupted . | . . . . . . Combat Hostiles . | . . . . . . Robots Corrupted 3 | . 1 . 2 . . Combat Hostiles 1 | . 1 . . . . Parts Fried 6 | 3 1 1 1 . . Impact Corruptions 4 | . . . 4 . . Robots Melted . | . . . . . . Combat Hostiles . | . . . . . . Parts Melted . | . . . . . . Heat Transferred 335 | 50 100 . 185 . . Parts Sabotaged . | . . . . . . Parts Stolen . | . . . . . . Parts Stripped . | . . . . . . Power Chain Reactions 2 | 1 1 . . . . Alert | -11 -10 -10 -9 -9 -9 ------- Run | Yrd Mat Min Mat Min Exi Maximum Alert Level 1 | . . . 1 1 . Low Security (%) 90 | 100 100 100 74 99 . Level 1 9 | . . . 25 . . Level 2 . | . . . . . . Level 3 . | . . . . . . Level 4 . | . . . . . . Level 5 . | . . . . . . High Security . | . . . . . . Max Security . | . . . . . . Peak Influence 258 | 10 175 65 258 200 . Initial 78 | . . 37 . 78 . Average 68 | . 19 9 126 95 . Influence Increases 2256 | 70 426 121 867 392 380 Destroy 0b10 Robot/C 1480 | . 200 40 560 300 380 Destroy 0b10 Robot/NC 175 | 70 15 . 90 . . Destroy Leader 256 | . 44 10 152 50 . Successful Hack 43 | . 31 . 12 . . Select Force Hacks 60 | . 60 . . . . Disable Machine 30 | . . . 15 15 . Destroy Structure 77 | . 31 11 23 12 . Lose Combat Pursuer 135 | . 45 60 15 15 . Influence Decreases 2072 | 70 329 218 665 568 222 Entered New Map 210 | . . 60 . 124 26 Time Decay 1479 | 70 159 143 567 444 96 Lost Part 150 | . 20 . 30 . 100 Lost Ally 15 | . . 15 . . . Purge Threat 218 | . 150 . 68 . . Squads Dispatched 4 | . 2 . 2 . . Investigation 2 | . 2 . . . . Extermination . | . . . . . . Reinforcement 2 | . . . 2 . . Assault . | . . . . . . Garrison . | . . . . . . Intercept . | . . . . . . Searches Triggered . | . . . . . . Construction Impeded . | . . . . . . Haulers Reinforced . | . . . . . . Active Scanning Responses . | . . . . . . Cargo Convoy Interrupts . | . . . . . . Stealth | -11 -10 -10 -9 -9 -9 --------- Run | Yrd Mat Min Mat Min Exi Distress Signals 8 | . 4 . 4 . . Communications Jammed . | . . . . . . Distress Signals . | . . . . . . Times Spotted 131 | . 17 24 52 16 22 Peak Tracking Total 20 | . 6 20 6 4 8 Tactical Retreats 10 | . 3 5 1 1 . Traps | -11 -10 -10 -9 -9 -9 ------- Run | Yrd Mat Min Mat Min Exi Traps Triggered 6 | . 3 . 3 . . Indirectly . | . . . . . . Trap Hack Attempts . | . . . . . . Triggered . | . . . . . . Disarmed . | . . . . . . Reprogrammed . | . . . . . . Reused . | . . . . . . Traps Extracted . | . . . . . . Installed . | . . . . . . Triggered . | . . . . . . Machines | -11 -10 -10 -9 -9 -9 ---------- Run | Yrd Mat Min Mat Min Exi Machines Disabled 5 | . . . 1 1 3 Max in Single Turn 1 | . . . 1 1 1 Machines Repaired . | . . . . . . Machines Dismantled . | . . . . . . Machines Sabotaged . | . . . . . . Overloaded Fab Kills . | . . . . . . Hacking | -11 -10 -10 -9 -9 -9 --------- Run | Yrd Mat Min Mat Min Exi Machines Accessed 17 | . 9 1 6 . 1 Terminals 13 | . 7 1 5 . . Fabricators . | . . . . . . Repair Stations 1 | . . . 1 . . Recycling Units 2 | . 2 . . . . Scanalyzers . | . . . . . . Garrison Access . | . . . . . . Total Hacks 51 | . 22 3 25 . 1 Successful 27 | . 13 1 12 . 1 Failed 24 | . 9 2 13 . . Catastrophic 4 | . 2 . 2 . . Database Lockouts . | . . . . . . Manual 39 | . 20 1 17 . 1 Terminals 44 | . 19 3 22 . . Fabricators . | . . . . . . Repair Stations 3 | . . . 3 . . Recycling Units 3 | . 3 . . . . Scanalyzers . | . . . . . . Garrison Access . | . . . . . . Terminal Hacks 8 | . 4 1 2 . 1 Robot Analysis 1 | . . . 1 . . Terminal Index 1 | . 1 . . . . Recycling Unit Index 1 | . 1 . . . . Unreport Threat 2 | . 1 . 1 . . Hauler Manifests 1 | . 1 . . . . Zone Layout 1 | . . 1 . . . Proto ID Catalog 1 | . . . . . 1 Fabricator Hacks . | . . . . . . Repair Station Hacks 2 | . . . 2 . . Scan Component 1 | . . . 1 . . Repair 1 | . . . 1 . . Recycling Unit Hacks . | . . . . . . Scanalyzer . | . . . . . . Garrison Access Hacks . | . . . . . . Unauthorized Hacks 17 | . 9 . 8 . . Terminals 15 | . 7 . 8 . . Botnet 3 | . 1 . 2 . . Operators 2 | . 1 . 1 . . Skim 10 | . 5 . 5 . . Fabricators . | . . . . . . Repair Stations . | . . . . . . Recycling Units 2 | . 2 . . . . Tunnel 2 | . 2 . . . . Scanalyzers . | . . . . . . Garrison Access . | . . . . . . Data Cores Recovered . | . . . . . . Used . | . . . . . . Hacking Detections 12 | . 5 1 6 . . Full Trace Events . | . . . . . . Feedback Events . | . . . . . . Feedback Blocked . | . . . . . . Robot Schematics Acquired . | . . . . . . Robots Built . | . . . . . . Authchips . | . . . . . . Time . | . . . . . . Total Robot Build Rating . | . . . . . . Part Schematics Acquired . | . . . . . . Parts Built . | . . . . . . Authchips . | . . . . . . Time . | . . . . . . Total Part Build Rating . | . . . . . . Part Studies Acquired . | . . . . . . Parts Repaired 1 | . . . 1 . . Time 26 | . . . 26 . . Parts Recycled . | . . . . . . Recycled Matter . | . . . . . . Retrieved Matter . | . . . . . . Retrieved Components . | . . . . . . Parts Scanalyzed . | . . . . . . Part Schematics Acquired . | . . . . . . Parts Damaged . | . . . . . . Bothacking | -11 -10 -10 -9 -9 -9 ------------ Run | Yrd Mat Min Mat Min Exi Used RIF Installer . | . . . . . . Robots Hacked . | . . . . . . Non-combat . | . . . . . . Combat . | . . . . . . Robot Hacks Applied . | . . . . . . Relay Couplers Released . | . . . . . . Fabnet Peak Effective % . | . . . . . . Robots Rewired . | . . . . . . Allies Hacked . | . . . . . . Hacks Repelled . | . . . . . . Allies | -11 -10 -10 -9 -9 -9 -------- Run | Yrd Mat Min Mat Min Exi Total Allies 3 | . . 3 . . . Largest Group 3 | . . 3 . . . Highest-Rated Group 40 | . . 40 . . . Highest-Rated Ally 16 | . . 16 . . . Total Orders . | . . . . . . Ally Attacks 18 | . . 18 . . . Total Damage 217 | . . 217 . . . Kills . | . . . . . . Allies Corrupted . | . . . . . . Allies Melted . | . . . . . . Intel | -11 -10 -10 -9 -9 -9 ------- Run | Yrd Mat Min Mat Min Exi Active Infowar (turns) 3148 | 636 1113 1179 220 . . Seismic 3148 | 636 1113 1179 220 . . Robot Analysis Total 1 | . . . 1 . . Derelict Logs Recovered 3 | . . . . 3 . Drone Launches . | . . . . . . Drone Recoveries . | . . . . . . Exploration | -11 -10 -10 -9 -9 -9 ------------- Run | Yrd Mat Min Mat Min Exi Turns Passed 7660 | 740 1113 1179 2483 1114 1031 Spaces Moved 2865 | 132 648 332 961 437 355 Core 37 | 3 33 . 1 . . Treads 1339 | . . . 547 437 355 Legs . | . . . . . . Wheels 1489 | 129 615 332 413 . . Hover . | . . . . . . Flight . | . . . . . . Fastest Speed 50 | 50 100 145 145 240 160 Average Speed 189 | 98 133 145 214 240 237 Slowest Speed 1100 | 100 250 145 1100 240 240 Overloaded Moves . | . . . . . . Propulsion Burnouts . | . . . . . . Robots Hopped . | . . . . . . Potential Cave-ins . | . . . . . . Cave-ins Triggered 1 | . . . 1 . . Exploration Rate (%) 60 | 6 77 57 73 86 66 Regions Visited 5 Branch Regions 3 Pre-discovered Areas 6 | . 3 . 1 2 . Known Exits Taken 3 | . 1 1 1 . . Unknown Exits Taken 2 | 1 . . . 1 . Scrap Searched 1 | . . . . 1 . Spaces Dug 9 | . 6 . 3 . . Terrain Destroyed 118 | 6 30 15 28 14 25 Melee 3 | . . . 3 . . Projectile 7 | . 6 . . . 1 AOE 108 | 6 24 15 25 14 24 Terrain Rammed . | . . . . . . Walls Destroyed . | . . . . . . Machines Disabled . | . . . . . . Actions | -11 -10 -10 -9 -9 -9 --------- Run | Yrd Mat Min Mat Min Exi Total 4624 | 698 808 1004 1213 458 443 Wait 1340 | 535 82 649 72 . 2 Move 2860 | 131 647 331 960 436 355 Hop . | . . . . . . Pick Up 42 | 5 11 3 20 . 3 Fast Attach 24 | 7 2 . 14 . 1 Attach 23 | . 2 2 7 . 12 Detach 12 | . . 2 7 . 3 Swap 36 | . 10 1 19 1 5 Drop 45 | . 7 . 29 . 9 Fire 232 | 20 46 16 76 21 53 Melee 9 | . . . 9 . . Ram . | . . . . . . Kick . | . . . . . . Crush 1 | . 1 . . . . Escape Stasis . | . . . . . . Rewire . | . . . . . . Trap . | . . . . . . Miscellaneous . | . . . . . . Route ------- -11/Scrapyard -10/Materials (discovered 6 exits: *Mat x3 / *Min x2 / Sub) -10/Mines -9/Materials (discovered 5 exits: *Mat x3 / *Min x2) -9/Mines (discovered 3 exits: *Mat x2 / *Exi) -9/Exiles History --------- Turn | Location | Event 11 | -11/Scrapyard | Discovered new exit (range 16) 741 | -11/Scrapyard | Entered Materials 742 | -10/Materials | Build established: Mutant 809 | -10/Materials | Discovered new exit (range 8) 1023 | -10/Materials | Discovered new exit (range 15) 1050 | -10/Materials | Discovered new exit (range 7) 1342 | -10/Materials | Identified exit to Materials 1380 | -10/Materials | Loaded intel: 13 trap records 1409 | -10/Materials | Learned Storage security intel 1426 | -10/Materials | Learned 4 Recycling zone layouts 1435 | -10/Materials | Identified exit to Mines 1435 | -10/Materials | Identified exit to Subcaves 1436 | -10/Materials | Learned location of Mines (-8) 1854 | -10/Materials | Entered Mines 1855 | -10/Mines | Assembled infested the area 1860 | -10/Mines | Assisted by a Guerilla fighting off Assembled 1895 | -10/Mines | Destroyed 16 combat bots 2326 | -10/Mines | Received a Rocket Launcher from a helpful Derelict 2601 | -10/Mines | Discovered exit to Materials (range 5) 2637 | -10/Mines | Assisted by bots powering up and referring to "LRC-V3" 2729 | -10/Mines | Lost 3 allies 3033 | -10/Mines | Entered Materials 3033 | -9/Materials | Evolved 2 slots: Propulsion x1, Weapon x1 3064 | -9/Materials | Discovered new exit (range 15) 3321 | -9/Materials | Lost 3 parts (1n1u1w) 3457 | -9/Materials | Discovered new exit (range 10) 3537 | -9/Materials | Repaired Lgt. Treads 3684 | -9/Materials | Destroyed 9 combat bots 3941 | -9/Materials | Build established: Tank 4283 | -9/Materials | Crushed by falling debris 4728 | -9/Materials | Discovered new exit (range 16) 5268 | -9/Materials | Learned Storage security intel 5300 | -9/Materials | Identified exit to Materials 5330 | -9/Materials | Identified exit to Mines 5371 | -9/Materials | Learned Storage emergency access door positions 5516 | -9/Materials | Entered Mines 5523 | -9/Mines | Met a Derelict bent on vengeance 5568 | -9/Mines | Build established: Scavenger-Tank 5955 | -9/Mines | Learned location of Zion (-6) 5957 | -9/Mines | Learned 4 Materials zone layouts 6013 | -9/Mines | Discovered exit to Materials (range 6) 6462 | -9/Mines | Discovered exit to Materials (range 12) 6599 | -9/Mines | Deemed a non-threat by the Exiles lab entrance 6599 | -9/Mines | Discovered new exit (range 5) 6630 | -9/Mines | Entered Exiles 6690 | -9/Exiles | Met 8R-AWN 6731 | -9/Exiles | Met EX-HEX 6846 | -9/Exiles | Met EX-DEC 7036 | -9/Exiles | Met EX-BIN 7070 | -9/Exiles | Aligned with FarCom system 7072 | -9/Exiles | Given EX-Vault access code 7127 | -9/Exiles | Opened EX-Vault 7190 | -9/Exiles | Warned to stay clear of 0b10 Research branches 7224 | -9/Exiles | Exiles lab attacked by MAIN.C 7273 | -9/Exiles | Found Flying Fortress v7 7281 | -9/Exiles | Found Army-in-a-Box 7439 | -9/Exiles | Core integrity fell below 50% 7481 | -9/Exiles | System corruption reached 10% 7513 | -9/Exiles | Lost 5 parts (3n1u1w) 7585 | -9/Exiles | Core integrity fell below 20% 7661 | -9/Exiles | Destroyed by H-55 Commando with Assault Rifle Last Messages --------------- 07607_ System corrupted: Matter fused (-5). 07608_ Destroyed Shock Rifle. 07608_ Slug penetrates Earth. 07615_ Slug penetrates P-60 Hacker. 07615_ P-60 Hacker destroyed. 07616_ The unstable cave ceiling collapses. 07620_ Hrd. Medium Armor Plating destroyed. 07629_ Destroyed Unknown Leg. 07632_ Slug penetrates G-34 Mercenary. 07642_ G-34 Mercenary destroyed. 07643_ PCFV#GZ4JA03LLTC> ,QNVH 07649_ Penetrated by Slug. 07653_ Acquired 50 matter. 07655_ Slug penetrates Earth. 07655_ Lgt. Treads destroyed. 07656_ Slug penetrates Earth. 07658_ Y990VDJVQQXU=WCBYK=%82&=PHSO:T5 U 07658_ Penetrated by Slug. 07659_ Destroyed Targeting Computer. 07659_ Slug penetrates H-55 Commando. Map ----- +----------------------------------------------------+ | ????????????????????# ## """???????????????? | | ????????????????????# X""???????????????? | | ????????????????????# ## """???????????????? | | ??????????????####??# #??"""""???????????????? | | ?????????????""""""?# #???###????????????????? | | ?????????????"""" ## #??????????????????????? | | ????????????#""X" #??????????????????????? | | ????????????#" #??????????????????????? | | ????????????#" ## #??????????????????????? | | ????????????#""""""?# #?#########????????????? | | ????????????##"###??# #?#"""""""#????????????? | | ????????????????????# #?#"""""""#????????????? | | ????????????????????# #?# """"""#????????????? | | ???????????????????## ### " """"#????????????? | | ???????????????????#" """"#????????????? | | ???????????????????#" """#????????????? | | ???????????????????#" """#????????????? | | ???????????????????#" ""#????????????? | | ???????????????????#" """#????????????? | | ???????????????????#" """##???????????? | | ???????????????????## """""???????????? | | ????????????????????# """##???????????? | | ????????????????????#" X" """""???????????? | | ????????????????????#" " #????????????? | | ?????? ""?????????# *! """"#????????????? | | ??????" "?????????## =@ # ######????????????? | | ??????# #????????##" !! #####?????????????????? | | #???### ###?###### !==# ##??????????????????? | | #####X# #"###""""" [ #??????????????????? | | """""" " =[! #??##??###?????????? | | "" """ %!!%/ !! ###"""""""""##?????? | | " " = " """ """"##????? | | h%[ "" " #????? | | ! " """#????? | | % = " "#????? | | " "##???? | | h = ""###?? | | "" = [ """#?? | | ######" =%= "#?? | | ""##????### # [ ##? | | " """##????????### " ## | | """##???????????#" "" # | | ""#???????????##"" | | ########??####"""" | | ## ####""" | | """" | | | | "" # | | " ## | | " "" """ ""#? | +----------------------------------------------------+ Best States ------------- Heat Dissipation 38 Energy Generation 14 Energy Capacity 280 Matter Stores 300 Matter Capacity 300 Sight Range 16 Terrain Scan Density 10 Armor Coverage 225 Evasion (%) 40 Recoil Reduction 3 Item Schematics ----------------- None Robot Schematics ------------------ None Fabricated ------------ Nothing Repaired ---------- Lgt. Treads | 19% | -9/Materials Studied --------- None Alien Tech Used ----------------- None Achievements -------------- Deductive Reasoning Challenges ------------ None Game ------ Seed GravmagBombardmentWell Manual? 0 Play Time 00:55:23 Cumulative 139.3 hours Start 2025.10.25 @ 02:31:15 End 2025.10.25 @ 03:25:54 Sessions 1 Manual Loads 0 Difficulty Rogue Special Mode None Game No. 100 Rogue 100 Adventurer 0 Explorer 0 Win Type - Total 2 Types 2/0/0/0/0/0/0/0/0/0 Lore% 43 Gallery% 48 Achievement% 30 Wizard Run 0 Options --------- Layout 1 ASCII 0 Keyboard 1 Movement Vi Keybinds 1 Fullscreen 1 Font 32/SmallcapsGlow Map View 50x35 Zoom Use 0% Tactical HUD 1 Map Filters NONE Filters NONE Steam 1 RUN: d634d9bc-872c-4ba1-a157-adfa8f17a94d